fUSD/lending_fUSD_20260401
["ID","MTS","AMOUNT","RATE_DAILY","PERIOD"]
[419236789,1775028640874,-500.0,0.00010958,16]
[419236790,1775028640885,-500.0,0.00010958,17]
[419236791,1775028640896,-500.0,0.00010958,18]
[419236792,1775028640907,-500.0,0.00010958,19]
[419236793,1775028640916,-500.0,0.00010959,2]
[419236794,1775028640927,-216.6270075,0.00010959,2]
[419236795,1775028640938,-150.0,0.00010959,2]
[419236798,1775028640949,-239.97550467,0.00010959,2]
[419236800,1775028640959,-1284.14,0.00011088,2]
[419236802,1775028640968,-200.0,0.00011096,2]
[419236804,1775028640978,-1386.78395259,0.00011096,2]
[419236806,1775028640988,-42084.20046374,0.00011099,2]
[419236807,1775028640998,-42084.20046372,0.00011099,2]
[419236808,1775028641010,-42084.20046372,0.00011099,2]
[419236809,1775028641020,-42084.20046372,0.00011099,2]
[419236810,1775028641031,-42084.20046372,0.00011232,2]
[419236811,1775028641042,-250.0,0.00011282,2]
[419236812,1775028641052,-1600.0,0.00011283,2]
[419236813,1775028641062,-1284.14,0.00011362,2]
[419236814,1775028641071,-1963.57500766,0.00011362,2]
[419236815,1775028641082,-3292.0,0.00011363,2]
[419236816,1775028641092,-823.0,0.00011363,2]
[419236817,1775028641103,-736.0,0.00011363,2]
[419236818,1775028641115,-4693.82,0.00011507,2]
[419236819,1775028641126,-247.717,0.000116,12]
[419236820,1775028641137,-1284.14,0.00011636,2]
[419236821,1775028641148,-200.0,0.00011644,2]
[419236822,1775028641160,-1438.09495884,0.00011644,2]
[419236823,1775028641172,-2654.57,0.000119,2]
[419236824,1775028641182,-42084.20046372,0.0001191,2]
[419236825,1775028641191,-1284.14,0.0001191,2]
[419236826,1775028641201,-277.71,0.00011933,2]
[419236827,1775028641211,-48009.51,0.00012055,2]
[419236829,1775028641221,-1284.14,0.00012184,2]
[419236831,1775028641230,-200.0,0.00012192,2]
[419236833,1775028641240,-931.87155833,0.00012192,2]
[419236835,1775028641249,-183.0,0.00012218,3]
[419236837,1775028641260,-1600.0,0.00012308,2]
[419236839,1775028641270,-185.8,0.00012419,2]
[419236840,1775028641280,-1284.14,0.00012458,2]
[419236841,1775028641290,-1252.0,0.00012499,2]
[419236842,1775028641299,-4609.0,0.000125,2]
[419236844,1775028641309,-1152.0,0.000125,2]
[419236845,1775028641320,-42084.20046372,0.00012587,2]
[419236846,1775028641329,-10099.8,0.00012607,2]
[419236847,1775028641339,-1284.1732866,0.00012732,2]
[419236848,1775028641348,-151.0,0.00012739,2]
[419236849,1775028641359,-200.0,0.0001274,2]
[419236850,1775028641369,-318.3378,0.00013,17]
[419236851,1775028641379,-250.0,0.00013,2]
[419236852,1775028641390,-500.0,0.00013096,2]
[419236853,1775028641403,-500.0,0.00013096,2]
[419236854,1775028641413,-505.0,0.00013111,2]
[419236855,1775028641423,-154.81653029,0.00013135,2]
[419236856,1775028641432,-1006.64,0.00013151,2]
[419236857,1775028641442,-42084.20046372,0.00013264,2]
[419236858,1775028641453,-200.0,0.00013288,2]
[419236859,1775028641463,-3240.0,0.00013425,2]
[419236860,1775028641473,-20976.71790288,0.00013449,2]
[419236861,1775028641483,-500.0,0.00013698,2]
[419236862,1775028641494,-500.0,0.00013698,2]
[419236863,1775028641504,-500.0,0.00013698,2]
[419236864,1775028641515,-500.0,0.00013698,2]
[419236865,1775028641525,-500.0,0.00013698,2]
[419236866,1775028641535,-500.0,0.00013698,2]
[419236867,1775028641545,-500.0,0.00013698,2]
[419236868,1775028641555,-500.0,0.00013698,2]
[419236869,1775028641566,-500.0,0.00013698,2]
[419236870,1775028641576,-500.0,0.00013698,2]
[419236871,1775028641587,-500.0,0.00013698,2]
[419236872,1775028641598,-500.0,0.00013698,2]
[419236873,1775028641609,-500.0,0.00013698,2]
[419236874,1775028641619,-500.0,0.00013698,2]
[419236875,1775028641629,-500.0,0.00013698,2]
[419236876,1775028641641,-500.0,0.00013698,2]
[419236877,1775028641651,-500.0,0.00013698,2]
[419236878,1775028641661,-500.0,0.00013698,2]
[419236879,1775028641671,-500.0,0.00013698,2]
[419236880,1775028641681,-500.0,0.00013698,2]
[419236881,1775028641691,-500.0,0.00013698,2]
[419236882,1775028641701,-500.0,0.00013698,2]
[419236883,1775028641712,-500.0,0.00013698,2]
[419236884,1775028641723,-500.0,0.00013698,2]
[419236885,1775028641733,-500.0,0.00013698,2]
[419236886,1775028641743,-500.0,0.00013698,2]
[419236887,1775028641754,-500.0,0.00013698,2]
[419236888,1775028641765,-500.0,0.00013698,2]
[419236889,1775028641774,-500.0,0.00013698,2]
[419236890,1775028641786,-500.0,0.00013698,2]
[419236891,1775028641796,-500.0,0.00013698,2]
[419236892,1775028641806,-500.0,0.00013698,2]
[419236893,1775028641816,-500.0,0.00013698,2]
[419236894,1775028641826,-500.0,0.00013698,2]
[419236895,1775028641837,-521.10158946,0.00013698,2]
[419236896,1775028641848,-500.0,0.00013698,2]
[419236897,1775028641858,-500.0,0.00013698,2]
[419236898,1775028641870,-500.0,0.00013698,2]
[419236899,1775028641879,-500.0,0.00013698,2]
[419236900,1775028641889,-618.03329484,0.00013698,2]
[419236901,1775028641899,-500.0,0.00013698,2]
[419236902,1775028641908,-500.0,0.00013698,2]
[419236903,1775028641918,-500.0,0.00013698,2]
[419236904,1775028641928,-500.0,0.00013698,2]
[419236905,1775028641938,-500.0,0.00013698,2]
[419236906,1775028641948,-500.0,0.00013698,2]
[419236907,1775028641958,-500.0,0.00013698,2]
[419236908,1775028641970,-500.0,0.00013698,2]
[419236910,1775028641981,-500.0,0.00013698,2]
[419236911,1775028641990,-500.0,0.00013698,2]
[419236913,1775028642000,-500.0,0.00013698,2]
[419236915,1775028642010,-500.0,0.00013698,2]
[419236917,1775028642021,-376.79746068,0.00013698,2]
[419236918,1775028642031,-500.0,0.00013698,2]
[419236920,1775028642041,-500.0,0.00013698,2]
[419236921,1775028642052,-500.0,0.00013698,2]
[419236922,1775028642061,-500.0,0.00013698,2]
[419236923,1775028642071,-500.0,0.00013698,2]
[419236924,1775028642081,-500.0,0.00013698,2]
[419236925,1775028642091,-500.0,0.00013698,2]
[419236926,1775028642101,-500.0,0.00013698,2]
[419236927,1775028642111,-500.0,0.00013698,2]
[419236928,1775028642120,-500.0,0.00013698,2]
[419236929,1775028642130,-500.0,0.00013698,2]
[419236930,1775028642140,-500.0,0.00013698,2]
[419236931,1775028642150,-500.0,0.00013698,2]
[419236932,1775028642160,-500.0,0.00013698,2]
[419236933,1775028642170,-500.0,0.00013698,2]
[419236934,1775028642179,-500.0,0.00013698,2]
[419236935,1775028642189,-500.0,0.00013698,2]
[419236936,1775028642199,-500.0,0.00013698,2]
[419236937,1775028642209,-500.0,0.00013698,2]
[419236938,1775028642218,-175.33019501,0.00013698,2]
[419236939,1775028642228,-500.0,0.00013698,2]
[419236940,1775028642238,-500.0,0.00013698,2]
[419236941,1775028642248,-500.0,0.00013698,2]
[419236942,1775028642258,-504.62510561,0.00013698,2]
[419236943,1775028642268,-500.0,0.00013698,2]
[419236944,1775028642279,-500.0,0.00013698,2]
[419236945,1775028642288,-500.0,0.00013698,2]
[419236946,1775028642298,-500.0,0.00013698,2]
[419236947,1775028642308,-500.0,0.00013698,2]
[419236948,1775028642318,-500.0,0.00013698,2]
[419236949,1775028642328,-500.0,0.00013698,2]
[419236950,1775028642338,-500.0,0.00013698,2]
[419236951,1775028642348,-500.0,0.00013698,2]
[419236952,1775028642357,-500.0,0.00013698,2]
[419236953,1775028642367,-500.0,0.00013698,2]
[419236954,1775028642377,-500.0,0.00013698,2]
[419236955,1775028642387,-500.0,0.00013698,2]
[419236956,1775028642398,-500.0,0.00013698,2]
[419236957,1775028642407,-500.0,0.00013698,2]
[419236958,1775028642417,-500.0,0.00013698,2]
[419236959,1775028642427,-500.0,0.00013698,2]
[419236960,1775028642437,-500.0,0.00013698,2]
[419236961,1775028642447,-489.51900798,0.00013698,2]
[419236962,1775028642457,-500.0,0.00013698,2]
[419236963,1775028642467,-500.0,0.00013698,2]
[419236964,1775028642477,-500.0,0.00013698,2]
[419236965,1775028642487,-500.0,0.00013698,2]
[419236966,1775028642497,-502.04948952,0.00013698,2]
[419236967,1775028642507,-500.0,0.00013698,2]
[419236968,1775028642517,-500.0,0.00013698,2]
[419236969,1775028642527,-500.0,0.00013698,2]
[419236970,1775028642536,-500.0,0.00013698,2]
[419236971,1775028642546,-500.0,0.00013698,2]
[419236972,1775028642556,-500.0,0.00013698,2]
[419236973,1775028642565,-500.0,0.00013698,2]
[419236974,1775028642575,-500.0,0.00013698,2]
[419236975,1775028642584,-289.97620277,0.00013698,2]
[419236976,1775028642594,-500.0,0.00013698,2]
[419236977,1775028642604,-500.0,0.00013698,2]
[419236978,1775028642613,-500.0,0.00013698,2]
[419236979,1775028642623,-500.0,0.00013698,2]
[419236980,1775028642641,-500.0,0.00013698,2]
[419236981,1775028642653,-500.0,0.00013698,2]
[419236982,1775028642663,-567.75072671,0.00013698,2]
[419236983,1775028642672,-500.0,0.00013698,2]
[419236984,1775028642683,-500.0,0.00013698,2]
[419236985,1775028642693,-500.0,0.00013698,2]
[419236986,1775028642703,-500.0,0.00013698,2]
[419236987,1775028642713,-500.0,0.00013698,2]
[419236988,1775028642723,-500.0,0.00013698,2]
[419236989,1775028642734,-500.0,0.00013698,2]
[419236990,1775028642744,-500.0,0.00013698,2]
[419236991,1775028642755,-500.0,0.00013698,2]
[419236992,1775028642765,-500.0,0.00013698,2]
[419236993,1775028642776,-500.0,0.00013698,2]
[419236994,1775028642786,-500.0,0.00013698,2]
[419236995,1775028642796,-500.0,0.00013698,2]
[419236996,1775028642806,-500.0,0.00013698,2]
[419236997,1775028642817,-500.0,0.00013698,2]
[419236998,1775028642827,-500.0,0.00013698,2]
[419236999,1775028642837,-500.0,0.00013698,2]
[419237000,1775028642847,-500.0,0.00013698,2]
[419237001,1775028642857,-500.0,0.00013698,2]
[419237002,1775028642867,-500.0,0.00013698,2]
[419237003,1775028642878,-500.0,0.00013698,2]
[419237004,1775028642888,-500.0,0.00013698,2]
[419237005,1775028642899,-500.0,0.00013698,2]
[419237006,1775028642909,-500.0,0.00013698,2]
[419237007,1775028642919,-500.0,0.00013698,2]
[419237008,1775028642930,-500.0,0.00013698,2]
[419237009,1775028642940,-500.0,0.00013698,2]
[419237010,1775028642950,-500.0,0.00013698,2]
[419237011,1775028642960,-500.0,0.00013698,2]
[419237012,1775028642974,-500.0,0.00013698,2]
[419237015,1775028643431,-212.34445911,0.00013698,2]
[419237016,1775028643441,-500.0,0.00013698,2]
[419237017,1775028643451,-500.0,0.00013698,2]
[419237018,1775028643461,-500.0,0.00013698,2]
[419237019,1775028643470,-500.0,0.00013698,2]
[419237020,1775028643480,-500.0,0.00013698,2]
[419237021,1775028643490,-500.0,0.00013698,2]
[419237022,1775028643500,-500.0,0.00013698,2]
[419237023,1775028643510,-500.0,0.00013698,2]
[419237024,1775028643519,-500.0,0.00013698,2]
[419237025,1775028643529,-500.0,0.00013698,2]
[419237026,1775028643539,-500.0,0.00013698,2]
[419237027,1775028643549,-500.0,0.00013698,2]
[419237028,1775028643559,-500.0,0.00013698,2]
[419237030,1775028643569,-500.0,0.00013698,2]
[419237031,1775028643579,-500.0,0.00013698,2]
[419237032,1775028643589,-500.0,0.00013698,2]
[419237034,1775028643599,-500.0,0.00013698,2]
[419237035,1775028643609,-500.0,0.00013698,2]
[419237036,1775028643621,-500.0,0.00013698,2]
[419237038,1775028643631,-500.0,0.00013698,2]
[419237039,1775028643641,-500.0,0.00013698,2]
[419237040,1775028643652,-500.0,0.00013698,2]
[419237041,1775028643661,-500.0,0.00013698,2]
[419237042,1775028643671,-500.0,0.00013698,2]
[419237043,1775028643681,-500.0,0.00013698,2]
[419237044,1775028643691,-500.0,0.00013698,2]
[419237045,1775028643701,-500.0,0.00013698,2]
[419237046,1775028643711,-500.0,0.00013698,2]
[419237047,1775028643720,-500.0,0.00013698,2]
[419237048,1775028643730,-500.0,0.00013698,2]
[419237049,1775028643740,-500.0,0.00013698,2]
[419237050,1775028643749,-500.0,0.00013698,2]
[419237051,1775028643760,-500.0,0.00013698,2]
[419237052,1775028643770,-500.0,0.00013698,2]
[419237053,1775028643779,-500.0,0.00013698,2]
[419237054,1775028643789,-500.0,0.00013698,2]
[419237055,1775028643799,-445.36727502,0.00013698,2]
[419237056,1775028643808,-500.0,0.00013698,2]
[419237057,1775028643818,-500.0,0.00013698,2]
[419237058,1775028643828,-500.0,0.00013698,2]
[419237059,1775028643838,-500.0,0.00013698,2]
[419237060,1775028643849,-500.0,0.00013698,2]
[419237061,1775028643861,-541.27886182,0.00013698,2]
[419237062,1775028643871,-500.0,0.00013698,2]
[419237063,1775028643881,-500.0,0.00013698,2]
[419237064,1775028643890,-500.0,0.00013698,2]
[419237065,1775028643901,-500.0,0.00013698,2]
[419237066,1775028643911,-500.0,0.00013698,2]
[419237067,1775028643921,-183.58723642,0.00013698,2]
[419237068,1775028643931,-500.0,0.00013698,2]
[419237069,1775028643940,-500.0,0.00013698,2]
[419237070,1775028643951,-500.0,0.00013698,2]
[419237071,1775028643961,-500.0,0.00013698,2]
[419237072,1775028643971,-500.0,0.00013698,2]
[419237073,1775028643981,-500.0,0.00013698,2]
[419237074,1775028643991,-500.0,0.00013698,2]
[419237075,1775028644001,-500.0,0.00013698,2]
[419237076,1775028644011,-500.0,0.00013698,2]
[419237077,1775028644022,-500.0,0.00013698,2]
[419237078,1775028644031,-500.0,0.00013698,2]
[419237079,1775028644040,-500.0,0.00013698,2]
[419237080,1775028644051,-495.0,0.00013698,2]
[419237082,1775028644060,-500.0,0.00013698,2]
[419237083,1775028644070,-150.0,0.00013699,2]
[419237085,1775028644080,-150.0,0.00013699,2]
[419237087,1775028644090,-150.0,0.00013699,2]
[419237089,1775028644099,-150.0,0.00013699,2]
[419237090,1775028644109,-158.5,0.00013699,2]
[419237092,1775028644118,-792.51,0.00013699,2]
[419237094,1775028644128,-166.66,0.00013699,2]
[419237095,1775028644139,-16362.27,0.00013699,2]
[419237097,1775028644149,-500.0,0.00013699,2]
[419237098,1775028644158,-500.0,0.00013699,2]
[419237099,1775028644167,-500.73578888,0.00013699,2]
[419237100,1775028644176,-500.0,0.00013699,2]
[419237101,1775028644185,-500.0,0.00013699,2]
[419237102,1775028644195,-500.0,0.00013699,2]
[419237103,1775028644204,-500.41125099,0.00013699,2]
[419237104,1775028644214,-500.0,0.00013699,2]
[419237105,1775028644223,-500.0,0.00013699,2]
[419237106,1775028644232,-500.0,0.00013699,2]
[419237107,1775028644242,-500.0,0.00013699,2]
[419237109,1775028644251,-500.0,0.00013699,2]
[419237110,1775028644261,-500.0,0.00013699,2]
[419237111,1775028644271,-500.0,0.00013699,2]
[419237112,1775028644280,-500.0,0.00013699,2]
[419237113,1775028644291,-500.0,0.00013699,2]
[419237114,1775028644302,-330.62596809,0.00013699,2]
[419237115,1775028644312,-500.0,0.00013699,2]
[419237116,1775028644322,-500.0,0.00013699,2]
[419237117,1775028644332,-500.0,0.00013699,2]
[419237118,1775028644342,-500.0,0.00013699,2]
[419237119,1775028644351,-500.0,0.00013699,2]
[419237120,1775028644362,-500.37557038,0.00013699,2]
[419237121,1775028644373,-312.57026801,0.00013699,2]
[419237122,1775028644383,-342.86927072,0.00013699,2]
[419237123,1775028644393,-500.0,0.00013699,2]
[419237124,1775028644403,-500.0,0.00013699,2]
[419237125,1775028644413,-500.0,0.00013699,2]
[419237126,1775028644423,-500.0,0.00013699,2]
[419237127,1775028644433,-367.40868416,0.00013699,2]
[419237128,1775028644443,-500.0,0.00013699,2]
[419237129,1775028644452,-500.0,0.00013699,2]
[419237130,1775028644462,-216.88168899,0.00013699,2]
[419237131,1775028644471,-6453.0,0.00013749,2]
[419237132,1775028644481,-1613.0,0.00013749,2]
[419237133,1775028644491,-2129.0,0.00013754,2]
[419237134,1775028644500,-166.66,0.00013836,2]
[419237135,1775028644510,-200.0,0.00013836,2]
[419237136,1775028644520,-2000.0,0.00013878,2]
[419237137,1775028644530,-277.71,0.0001391,2]
[419237138,1775028644540,-42084.20046372,0.00013942,2]
[419237139,1775028644549,-150.0,0.00013973,2]
[419237140,1775028644559,-150.0,0.00013973,2]
[419237141,1775028644568,-150.0,0.00013973,2]
[419237142,1775028644578,-166.66,0.00013973,2]
[419237143,1775028644587,-28704.32350983,0.00014006,2]
[419237144,1775028644597,-183.0,0.00014058,3]
[419237145,1775028644607,-166.66,0.0001411,2]
[419237146,1775028644617,-500.0,0.00014219,2]
[419237147,1775028644626,-166.66,0.00014247,2]
[419237148,1775028644636,-150.0,0.00014247,2]
[419237149,1775028644645,-150.0,0.00014247,2]
[419237150,1775028644655,-1000.0,0.00014247,2]
[419237151,1775028644665,-1000.0,0.00014247,2]
[419237152,1775028644675,-20976.71790288,0.00014266,2]
[419237153,1775028644685,-166.66,0.00014384,2]
[419237154,1775028644694,-200.0,0.00014384,2]
[419237155,1775028644705,-409.0917,0.000145,22]
[419237156,1775028644715,-1118.245,0.00014504,2]
[419237157,1775028644725,-42084.20046372,0.00014619,2]
[419237158,1775028644735,-185.8,0.00014719,2]
[419237159,1775028644745,-1579.04808524,0.00014795,2]
[419237160,1775028644755,-1500.0,0.00014795,2]
[419237161,1775028644765,-168.26,0.00014795,2]
[419237162,1775028644777,-1969.53,0.00014853,2]
[419237163,1775028644787,-1107.5140027,0.00014876,2]
[419237164,1775028644797,-200.0,0.00014932,2]
[419237165,1775028644807,-300.0,0.00015,2]
[419237166,1775028644816,-20976.71790288,0.00015083,2]
[419237167,1775028644826,-9035.0,0.00015124,2]
[419237168,1775028644835,-848.0,0.00015128,2]
[419237169,1775028644846,-2000.0,0.00015342,2]
[419237170,1775028644856,-500.0,0.00015425,2]
[419237171,1775028644867,-160.0,0.00015434,2]
[419237172,1775028644876,-160.0,0.00015434,2]
[419237173,1775028644886,-160.0,0.00015434,2]
[419237174,1775028644895,-152.5578191,0.00015478,2]
[419237175,1775028644905,-200.0,0.0001548,2]
[419237176,1775028644915,-10000.0,0.00015604,15]
[419237177,1775028644926,-10000.0,0.00015604,15]
[419237178,1775028644938,-10000.0,0.00015604,15]
[419237179,1775028644949,-2069.0,0.00015604,15]
[419237180,1775028644959,-2000.0,0.00015613,2]
[419237181,1775028644968,-1000.0,0.00015632,2]
[419237182,1775028644978,-378.27848064,0.00015641,2]
[419237183,1775028644989,-177.64491425,0.00015645,2]
[419237184,1775028645004,-150.0,0.00015647,2]
[419237185,1775028645014,-150.0,0.00015647,2]
[419237186,1775028645027,-150.0,0.00015648,2]
[419237187,1775028645037,-1000.0,0.00015652,2]
[419237188,1775028645046,-150.0,0.00015654,2]
[419237189,1775028645055,-1000.0,0.00015662,2]
[419237190,1775028645064,-150.0,0.00015682,2]
[419237191,1775028645074,-233.93350936,0.00015683,2]
[419237192,1775028645083,-505.0,0.00015684,4]
[419237193,1775028645093,-150.0,0.00015685,2]
[419237194,1775028645103,-214.20886618,0.00015685,2]
[419237195,1775028645113,-1000.0,0.00015687,2]
[419237196,1775028645123,-150.0,0.00015694,2]
[419237197,1775028645133,-150.0,0.00015701,2]
[419237198,1775028645143,-150.0,0.00015709,2]
[419237199,1775028645154,-1000.0,0.00015718,2]
[419237200,1775028645163,-1000.0,0.00015727,2]
[419237201,1775028645174,-1000.0,0.00015731,2]
[419237202,1775028645184,-1000.0,0.00015741,2]
[419237203,1775028645193,-1000.0,0.00015749,2]
[419237204,1775028645203,-1000.0,0.00015754,2]
[419237205,1775028645213,-1000.0,0.00015763,2]
[419237206,1775028645223,-150.0,0.00015772,2]
[419237207,1775028645232,-150.0,0.00015777,2]
[419237208,1775028645244,-150.0,0.00015784,2]
[419237209,1775028645254,-150.0,0.00015787,2]
[419237210,1775028645264,-1000.0,0.00015819,2]
[419237211,1775028645275,-1000.0,0.00015823,2]
[419237212,1775028645284,-1000.0,0.00015827,2]
[419237213,1775028645295,-150.0,0.00015836,2]
[419237214,1775028645307,-1000.0,0.00015836,2]
[419237215,1775028645319,-1000.0,0.00015838,2]
[419237216,1775028645329,-128106.53871111,0.0001584,2]
[419237217,1775028645339,-1000.0,0.00015845,2]
[419237218,1775028645348,-1000.0,0.00015849,2]
[419237219,1775028645359,-150.0,0.00015862,2]
[419237220,1775028645368,-1000.0,0.00015864,2]
[419237221,1775028645378,-1000.0,0.00015879,2]
[419237222,1775028645388,-150.0,0.00015886,2]
[419237223,1775028645398,-2000.0,0.0001589,2]
[419237224,1775028645408,-500.0,0.0001589,2]
[419237225,1775028645419,-2500.0,0.0001589,2]
[419237226,1775028645429,-183.0,0.00015898,3]
[419237227,1775028645438,-525.7182,0.000159,27]
[419237228,1775028645448,-10000.0,0.000159,2]
[419237229,1775028645457,-157.0,0.000159,2]
[419237230,1775028645467,-20976.71790288,0.000159,2]
[419237231,1775028645476,-475.37594719,0.00015901,2]
[419237232,1775028645486,-337.51468036,0.00015901,2]
[419237233,1775028645495,-500.0,0.00015973,2]
[419237234,1775028645504,-627.00850068,0.00015973,2]
[419237235,1775028645514,-500.0,0.00015973,2]
[419237236,1775028645524,-680.85122316,0.0001599,2]
[419237237,1775028645533,-895930.10983328,0.00016,2]
[419237239,1775028646827,-1781.94273671,0.00016,2]
[419237240,1775028646840,-18980.26945202,0.00016,2]
[419237241,1775028646852,-4322.27524776,0.00016,2]
[419237243,1775028647179,-150.0,0.00013699,2]
[419237244,1775028647188,-150.0,0.00014247,2]
[419237245,1775028647197,-878.28286565,0.00016,2]
[419237246,1775028647209,-3281.37849458,0.00016,2]
[419237247,1775028647220,-1082.79869781,0.00016,2]
[419237248,1775028647232,-2011.83723116,0.00016,2]
[419237249,1775028647379,-9105.93876457,0.00016,2]
[419237250,1775028647390,-506.37642362,0.00016,2]
[419237251,1775028647402,-254.12738969,0.00016,2]
[419237252,1775028647413,-2232.37439019,0.00016,2]
[419237253,1775028647428,-398.69735544,0.00016,2]
[419237254,1775028647439,-660544.98548047,0.00016,2]
[419237255,1775028647448,-250.0,0.00016,2]
[419237256,1775028647458,-250.0,0.00016,2]
[419237257,1775028647467,-358.45,0.00016,2]
[419237258,1775028647476,-200.0,0.00016,2]
[419237259,1775028647487,-174.29455196,0.00016,2]
[419237260,1775028647497,-488.92011993,0.00016,2]
[419237261,1775028647506,-200.0,0.00016,2]
[419237262,1775028647515,-151.0,0.00016,2]
[419237263,1775028647525,-151.0,0.00016,2]
[419237264,1775028647534,-151.0,0.00016,2]
[419237265,1775028647544,-151.0,0.00016,2]
[419237266,1775028647554,-151.0,0.00016,2]
[419237267,1775028647563,-151.0,0.00016,2]
[419237268,1775028647573,-151.0,0.00016,2]
[419237269,1775028647584,-151.0,0.00016,2]
[419237270,1775028647593,-500.0,0.00016,2]
[419237271,1775028647603,-500.0,0.00016,2]
[419237272,1775028647613,-500.0,0.00016,2]
[419237273,1775028647621,-500.0,0.00016,2]
[419237274,1775028647631,-500.0,0.00016,2]
[419237275,1775028647640,-500.0,0.00016,2]
[419237276,1775028647650,-500.0,0.00016,2]
[419237277,1775028647659,-500.0,0.00016,2]
[419237278,1775028647668,-772.867152,0.00016,2]
[419237279,1775028647678,-500.0,0.00016,2]
[419237280,1775028647687,-500.0,0.00016,2]
[419237281,1775028647697,-500.0,0.00016,2]
[419237282,1775028647707,-772.867152,0.00016,2]
[419237283,1775028647716,-500.0,0.00016,2]
[419237284,1775028647726,-500.0,0.00016,2]
[419237285,1775028647736,-500.0,0.00016,2]
[419237286,1775028647745,-500.0,0.00016,2]
[419237287,1775028647754,-500.0,0.00016,2]
[419237288,1775028647764,-772.867152,0.00016,2]
[419237289,1775028647773,-500.0,0.00016,2]
[419237290,1775028647783,-500.0,0.00016,2]
[419237291,1775028647792,-500.0,0.00016,2]
[419237292,1775028647801,-500.0,0.00016,2]
[419237293,1775028647811,-500.0,0.00016,2]
[419237294,1775028647820,-772.867152,0.00016,2]
[419237295,1775028647829,-500.0,0.00016,2]
[419237296,1775028647839,-500.0,0.00016,2]
[419237297,1775028647848,-500.0,0.00016,2]
[419237298,1775028647857,-500.0,0.00016,2]
[419237299,1775028647867,-500.0,0.00016,2]
[419237300,1775028647876,-500.0,0.00016,2]
[419237301,1775028647885,-500.0,0.00016,2]
[419237302,1775028647896,-500.0,0.00016,2]
[419237303,1775028647908,-500.0,0.00016,2]
[419237304,1775028647919,-500.0,0.00016,2]
[419237305,1775028647930,-500.0,0.00016,2]
[419237306,1775028647939,-500.0,0.00016,2]
[419237307,1775028647950,-500.0,0.00016,2]
[419237308,1775028647959,-500.0,0.00016,2]
[419237309,1775028647969,-500.0,0.00016,2]
[419237310,1775028647979,-500.0,0.00016,2]
[419237311,1775028647989,-500.0,0.00016,2]
[419237312,1775028647999,-500.0,0.00016,2]
[419237313,1775028648008,-500.0,0.00016,2]
[419237314,1775028648019,-500.0,0.00016,2]
[419237315,1775028648028,-363.417537,0.00016,2]
[419237316,1775028648037,-151.0,0.00016,2]
[419237317,1775028648047,-151.0,0.00016,2]
[419237318,1775028648056,-151.0,0.00016,2]
[419237319,1775028648066,-251.335443,0.00016,2]
[419237320,1775028648075,-342.803973,0.00016,2]
[419237321,1775028648083,-342.803973,0.00016,2]